bitfinex/quotes_ETHUSD_20250511
["timestamp","ask_amount","ask_price","bid_price","bid_amount"]
[1746980109316,4.06294612,2453.0,2452.6,3.791]
[1746980109487,8.1396087,2453.0,2452.6,3.791]
[1746980109686,4.06294612,2452.7,2452.6,3.791]
[1746980110006,8.0,2452.6,2452.0,3.792]
[1746980110205,4.06294612,2452.2,2452.0,3.792]
[1746980110582,4.0781371,2452.1,2452.0,3.792]
[1746980110917,4.06294612,2452.2,2452.0,3.792]
[1746980111323,4.06294612,2452.5,2452.0,3.792]
[1746980111481,4.06294612,2452.5,2452.1,0.04078205]
[1746980111685,4.06294612,2452.5,2452.0,3.792]
[1746980112314,4.83187481,2453.3,2452.0,3.792]
[1746980112515,4.06294612,2453.1,2452.1,0.3792]
[1746980112909,4.06294612,2452.8,2452.1,0.3792]
[1746980113707,4.06294612,2452.5,2452.0,3.792]
[1746980114221,4.06294612,2452.5,2452.1,0.04077634]
[1746980114404,4.06294612,2452.5,2452.0,3.792]
[1746980114718,4.06294612,2452.2,2452.0,3.792]
[1746980115286,8.0,2452.8,2452.0,4.17527794]
[1746980115486,4.06294612,2452.5,2452.0,4.17527794]
[1746980117226,4.06294612,2452.5,2452.1,0.04077562]
[1746980117427,3.82993599,2452.8,2452.1,0.04077562]
[1746980117641,3.82993599,2452.8,2452.0,10.21527794]
[1746980117821,3.82993599,2452.5,2452.1,1.02152779]
[1746980118515,3.82993599,2452.8,2452.1,1.02152779]
[1746980118893,3.82993599,2452.9,2452.2,0.04076842]
[1746980119110,3.82993599,2453.2,2452.2,0.04076842]
[1746980119406,10.19,2453.5,2452.3,0.55]
[1746980119611,4.06616557,2453.6,2452.4,11.80176213]
[1746980119828,4.06616557,2453.6,2452.5,1.83917621]
[1746980120022,8.7832,2453.8,2452.5,1.83917621]
[1746980120023,4.06616557,2453.3,2452.6,0.04076224]
[1746980120321,4.06616557,2453.3,2452.7,3.793]
[1746980120528,4.06616557,2453.3,2452.8,0.04076174]
[1746980120730,4.06616557,2453.3,2452.7,3.793]
[1746980120900,4.06616557,2453.0,2452.7,3.793]
[1746980121324,4.06616557,2453.3,2452.7,3.793]
[1746980121521,4.06616557,2453.3,2452.8,0.04076776]
[1746980121722,4.06616557,2453.3,2452.7,3.793]
[1746980121923,0.08835754,2453.2,2452.7,3.793]
[1746980122131,4.06616557,2453.1,2452.7,3.793]
[1746980122439,4.06616557,2452.8,2452.7,3.793]
[1746980122617,8.14313882,2452.8,2452.7,3.793]
[1746980122818,8.22413323,2452.8,2452.7,3.793]
[1746980123056,8.22419194,2452.8,2451.8,0.7882]
[1746980123239,4.0786361,2451.8,2451.7,1.13480102]
[1746980123450,0.81448017,2451.8,2450.5,0.7882]
[1746980123608,4.06616557,2450.9,2450.5,4.5442]
[1746980124132,0.08099441,2450.8,2450.5,3.756]
[1746980124303,0.08099441,2450.8,2450.6,0.04080227]
[1746980124505,0.08099441,2450.8,2450.5,3.79680203]
[1746980124814,4.06616557,2450.6,2450.5,3.756]
[1746980125014,4.06616557,2450.6,2449.9,0.7882]
[1746980125231,4.06616557,2450.0,2449.8,3.756]
[1746980125453,4.06616557,2450.0,2449.8,4.1316]
[1746980125944,0.08099441,2449.9,2449.8,4.1316]
[1746980126456,4.06616557,2450.0,2449.8,3.756]
[1746980127110,4.06616557,2450.0,2448.8,3.752]
[1746980127111,4.5362,2449.9,2448.7,3.758]
[1746980127448,4.06616557,2449.0,2448.8,3.758]
[1746980127601,4.06616557,2448.9,2448.8,3.758]
[1746980128005,4.06616557,2448.9,2448.2,14.675]
[1746980128006,4.06616557,2448.9,2448.3,3.758]
[1746980128217,4.06616557,2448.4,2448.3,5.64214285]
[1746980128439,4.06616557,2448.4,2448.3,5.6013]
[1746980128641,4.06616557,2448.4,2447.7,3.758]
[1746980128945,4.06616557,2448.1,2447.7,3.758]
[1746980129119,4.06616557,2448.1,2447.8,0.04085018]
[1746980129312,4.06616557,2448.1,2447.8,0.37988502]
[1746980129513,4.06616557,2448.4,2447.8,0.42073368]
[1746980129709,4.06616557,2448.1,2447.8,0.37988502]
[1746980129970,4.06616557,2448.7,2447.8,0.37988502]
[1746980130173,4.06616557,2448.7,2447.9,0.04084789]
[1746980130337,4.06616557,2448.7,2447.9,1.25872118]
[1746980130538,4.06616557,2448.7,2448.0,0.7882]
[1746980130775,4.06616557,2448.7,2448.1,0.04083891]
[1746980131237,4.06616557,2449.0,2448.1,8.04083891]
[1746980131442,4.06616557,2449.3,2448.3,0.7882]
[1746980131769,4.06616557,2449.3,2448.5,8.0]
[1746980132080,4.06616557,2449.3,2448.6,0.04083124]
[1746980132541,7.83239844,2449.6,2448.5,3.76]
[1746980132542,4.06616557,2448.7,2448.5,3.76]
[1746980137380,0.7612,2448.4,2448.0,3.761]
[1746980137595,4.06616557,2448.1,2448.0,3.761]
[1746980138206,4.06616557,2448.7,2448.1,8.0]
[1746980138392,4.06616557,2449.0,2448.2,0.79654054]
[1746980138561,4.06616557,2449.0,2448.3,0.55]
[1746980138762,4.06616557,2449.3,2448.3,0.55]
[1746980138957,4.06616557,2449.3,2448.2,0.7557]
[1746980138958,4.06616557,2449.3,2448.5,8.0]
[1746980139197,4.06616557,2449.6,2448.7,0.7882]
[1746980139389,4.06616557,2449.9,2448.9,8.7882]
[1746980139591,4.06616557,2449.9,2449.0,0.04082201]
[1746980139863,4.06616557,2449.6,2448.9,8.7882]
[1746980140277,6.68338282,2450.7,2449.2,0.7882]
[1746980140503,4.06616557,2450.3,2449.3,0.04082049]
[1746980140685,4.06616557,2450.0,2449.2,0.7882]
[1746980140998,4.06616557,2449.7,2449.2,0.7882]
[1746980142088,4.06616557,2449.4,2449.3,3.762]
[1746980143512,4.06616557,2449.7,2449.3,3.762]
[1746980144081,4.06616557,2449.4,2448.9,0.7882]
[1746980144276,4.06616557,2449.1,2449.0,3.762]
[1746980144876,4.06616557,2449.4,2449.0,3.762]
[1746980145192,4.06616557,2449.4,2449.0,4.21702]
[1746980145390,4.06616557,2449.4,2449.0,3.80282934]
[1746980145787,4.06616557,2449.9,2449.1,8.0]
[1746980146713,4.06616557,2449.6,2449.1,8.0]
[1746980147275,4.06616557,2449.6,2449.2,0.04082447]
[1746980147478,4.08155778,2450.1,2449.1,8.0]
[1746980147479,4.06616557,2449.3,2449.1,8.0]
[1746980147792,4.06616557,2449.3,2449.0,3.762]
[1746980148312,4.06616557,2449.6,2449.0,5.01702]
[1746980148517,4.06616557,2449.6,2449.1,8.04082697]
[1746980148808,4.06616557,2449.6,2449.1,8.0]
[1746980149480,4.06616557,2449.3,2449.1,8.0]
[1746980149881,4.06616557,2449.3,2449.0,3.762]
[1746980150889,8.14908702,2449.3,2449.0,3.762]
[1746980151095,4.06616557,2449.3,2449.0,3.762]
[1746980151431,4.08313257,2449.1,2449.0,3.762]
[1746980151579,4.91203452,2449.0,2448.3,3.762]
[1746980151781,4.06616557,2448.4,2448.3,3.762]
[1746980151989,0.8287,2448.3,2447.6,15.4416]
[1746980152241,4.06616557,2448.0,2447.7,3.762]
[1746980152842,4.0852577,2447.9,2447.7,3.762]
[1746980153041,4.06616557,2448.0,2447.7,3.762]
[1746980153247,4.89486557,2448.3,2447.7,5.64805277]
[1746980153545,4.06616557,2448.0,2447.7,5.6072]
[1746980153699,4.08530108,2447.8,2447.7,3.762]
[1746980154042,4.08541385,2447.8,2447.2,3.728]
[1746980154253,4.06616557,2447.7,2447.2,3.728]
[1746980154452,4.06616557,2447.7,2447.2,4.1008]
[1746980155111,4.06616557,2448.0,2447.2,4.1008]
[1746980155313,4.06616557,2447.7,2447.2,3.728]
[1746980155523,4.06616557,2447.4,2447.2,3.722]
[1746980155848,4.06616557,2447.4,2447.1,3.728]
[1746980156200,4.06616557,2447.4,2446.5,15.4803]
[1746980156416,4.06616557,2447.1,2446.6,3.729]
[1746980158297,4.06616557,2446.8,2446.1,0.7614]
[1746980158613,4.06616557,2446.4,2446.2,3.729]
[1746980158811,4.06616557,2446.3,2445.9,3.729]
[1746980159226,3.723,2446.8,2445.9,3.729]
[1746980159402,4.06616557,2446.3,2445.9,3.729]
[1746980160146,0.8092,2446.5,2446.0,8.04088084]
[1746980160366,4.06616557,2446.3,2445.9,3.729]
[1746980160955,4.06616557,2446.0,2445.6,14.696]
[1746980161135,4.06616557,2445.7,2445.6,18.426]
[1746980162039,4.06616557,2446.0,2445.6,14.696]
[1746980162355,4.06616557,2446.6,2445.8,0.7614]
[1746980163258,4.06616557,2446.9,2445.9,0.04087618]
[1746980163409,0.8092,2447.0,2445.9,0.04087618]
[1746980163410,4.06616557,2446.6,2445.9,0.04087618]
[1746980163605,4.06616557,2446.0,2445.8,3.731]
[1746980163806,4.06616557,2446.0,2445.8,4.56008192]
[1746980164005,4.06616557,2446.0,2445.8,4.5192]
[1746980164452,4.06616557,2446.0,2445.8,3.731]
[1746980165346,4.06616557,2446.0,2445.6,14.696]
[1746980165646,4.06616557,2446.0,2445.7,3.731]
[1746980165836,4.06616557,2446.0,2445.7,3.77188662]
[1746980166035,4.06616557,2446.6,2445.8,0.7882]
[1746980166226,4.06616557,2446.6,2445.9,0.04087673]
[1746980166746,4.06093793,2446.6,2445.9,0.04087673]
[1746980167261,4.06093793,2446.6,2445.8,0.7882]
[1746980167603,4.06616557,2446.9,2445.8,8.7882]
[1746980167892,4.06616557,2447.6,2446.3,0.55]
[1746980168110,4.06616557,2447.9,2446.7,0.7882]
[1746980168403,4.06616557,2448.2,2447.0,0.7882]
[1746980168545,4.06616557,2448.2,2447.2,8.0]
[1746980168744,4.06616557,2447.9,2447.2,8.0]
[1746980168996,4.06616557,2447.6,2447.1,14.706]
[1746980169150,4.06616557,2447.6,2447.3,3.731]
[1746980169495,4.06616557,2447.6,2447.1,15.88295065]
[1746980169496,4.06616557,2447.6,2447.1,14.706]
[1746980169662,4.06616557,2447.2,2447.1,18.437]
[1746980169999,8.15246828,2447.2,2447.1,14.706]
[1746980170289,4.06616557,2447.2,2447.1,14.706]
[1746980171672,8.15246828,2447.2,2446.8,3.731]
[1746980171877,4.06616557,2447.2,2446.8,3.731]
[1746980172076,8.1525151,2447.2,2446.8,3.731]
[1746980172274,4.06616557,2446.9,2446.8,3.731]
[1746980172472,4.85848725,2446.8,2446.1,14.706]
[1746980172657,4.06616557,2446.5,2446.2,3.731]
[1746980173385,8.15372588,2446.5,2446.2,3.731]
[1746980173976,4.06616557,2447.0,2446.3,0.82908127]
[1746980174187,4.06616557,2446.7,2446.3,0.7882]
[1746980174483,4.06616557,2446.7,2446.2,3.731]
[1746980174686,4.06616557,2447.0,2446.3,1.88457455]
[1746980175184,4.06616557,2447.0,2446.3,9.8437]
[1746980175387,4.06616557,2447.3,2446.4,0.7882]
[1746980175600,4.06616557,2447.0,2446.4,0.7882]
[1746980176154,4.06616557,2446.7,2446.4,0.7882]
[1746980176351,4.47278213,2446.7,2446.1,14.706]
[1746980176597,4.08797318,2446.2,2446.1,14.706]
[1746980176805,4.0881403,2446.1,2446.0,3.731]
[1746980177353,0.8146,2446.0,2445.1,14.707]
[1746980177675,4.06616557,2445.5,2445.4,3.732]
[1746980178560,4.06616557,2446.0,2445.4,4.1052]
[1746980179594,4.83736557,2446.6,2445.5,8.82908859]
[1746980179767,4.06616557,2446.6,2445.5,8.82908859]
[1746980179967,4.4742,2446.9,2445.5,8.82908859]
[1746980179968,8.54036557,2446.9,2445.7,0.7882]
[1746980180194,4.0863977,2447.2,2445.8,0.59087292]
[1746980180195,4.06616557,2447.2,2445.8,0.59087292]
[1746980180391,4.06616557,2447.2,2445.9,0.7882]
[1746980180592,4.06616557,2446.9,2446.1,8.0]
[1746980180795,4.06616557,2446.9,2446.2,1.1702]
[1746980180976,0.7712,2446.7,2446.3,3.732]
[1746980181181,4.06616557,2446.4,2446.3,3.732]
[1746980181379,4.83736557,2446.7,2446.3,3.732]
[1746980181678,8.15380454,2446.4,2446.3,3.732]
[1746980181864,9.74038499,2446.4,2446.3,3.732]
[1746980182265,5.65274602,2446.4,2446.3,3.732]
[1746980182594,4.06616557,2446.4,2446.3,3.732]
[1746980183089,4.06616557,2447.2,2446.3,3.732]
[1746980183265,4.06616557,2447.2,2446.4,22.74986658]
[1746980183468,4.06616557,2446.9,2446.5,2.64818666]
[1746980183654,4.06616557,2447.2,2446.6,0.04087186]
[1746980184077,4.06616557,2446.9,2446.4,14.709]
[1746980184362,8.0,2447.1,2446.4,14.709]
[1746980184767,4.06616557,2446.9,2446.4,14.709]
[1746980184969,4.06616557,2446.6,2446.4,14.709]
[1746980186295,4.06616557,2446.9,2446.4,14.709]
[1746980186510,4.06616557,2446.6,2446.4,14.709]
[1746980186713,12.08747189,2446.5,2446.4,14.709]
[1746980186887,8.0,2446.5,2446.4,14.709]
[1746980187069,8.0,2446.5,2445.6,0.7882]
[1746980187070,1.3263,2446.4,2445.6,0.7882]
[1746980187273,4.08895322,2445.7,2445.3,3.699]
[1746980187719,8.0,2446.2,2445.4,0.04089373]
[1746980188074,4.0886933,2445.8,2445.3,3.699]
[1746980188374,5.76167839,2445.5,2445.2,3.699]
[1746980188570,4.08946294,2445.4,2445.2,3.699]
[1746980188824,9.85088975,2445.5,2445.2,3.699]
[1746980188989,5.76167839,2445.5,2445.2,3.699]
[1746980189602,8.0,2445.8,2445.2,3.699]
[1746980189975,5.76167839,2446.3,2445.3,0.04089333]
[1746980190178,0.7763,2446.4,2445.4,0.7882]
[1746980190577,5.76167839,2446.7,2445.5,0.0408815]
[1746980190909,8.0,2446.6,2445.4,0.7882]
[1746980191079,5.76167839,2446.7,2445.5,0.87882]
[1746980191412,8.0,2446.6,2445.5,0.87882]
[1746980191709,5.76167839,2446.7,2445.6,0.04087699]
[1746980191875,5.76167839,2447.1,2445.7,0.7882]
[1746980192078,0.7763,2447.8,2446.1,0.55]
[1746980192405,0.7763,2447.8,2446.4,0.55]
[1746980192574,4.08563987,2447.6,2446.5,4.51905948]
[1746980192779,4.08687937,2446.9,2446.6,3.7]
[1746980193078,8.7763,2446.6,2445.2,1.27843206]
[1746980193286,8.7763,2446.6,2445.3,3.74087703]
[1746980193579,0.7763,2446.6,2445.4,0.50193091]
[1746980193779,3.69,2446.8,2445.6,0.7882]
[1746980193993,3.69,2446.8,2445.7,0.04087828]
[1746980194195,4.08744667,2446.6,2445.6,0.7882]
[1746980194507,0.7863,2447.0,2445.7,0.04087834]
[1746980194829,8.0,2447.2,2445.8,0.7882]
[1746980195037,0.7863,2447.8,2446.1,0.55]
[1746980195329,4.08480045,2448.1,2446.4,0.7882]
[1746980195514,0.7863,2448.2,2446.5,15.29985704]
[1746980195715,5.76167839,2447.9,2446.6,8.0]
[1746980196027,10.63186401,2448.7,2447.1,0.7882]
[1746980196238,4.08396634,2448.6,2447.2,0.04085019]
[1746980196539,6.54797839,2448.7,2447.4,8.0]
[1746980196741,0.7863,2448.7,2447.5,0.04084942]
[1746980197038,6.54797839,2449.1,2447.6,0.7882]
[1746980197193,0.7863,2449.5,2447.8,0.7882]
[1746980197394,0.65479784,2449.5,2448.1,0.7882]
[1746980197594,5.76167839,2449.8,2448.2,7.424834]
[1746980197816,0.7863,2449.9,2448.3,9.3382]
[1746980198018,4.08196587,2449.8,2448.3,8.7882]
[1746980198349,5.76167839,2450.0,2448.5,0.7823]
[1746980198548,5.76167839,2450.0,2448.6,0.04082586]
[1746980198697,5.76167839,2450.0,2448.5,0.7823]
[1746980198698,4.08223936,2449.7,2448.5,0.7823]
[1746980198892,5.06623969,2449.9,2448.5,0.7823]
[1746980198893,4.08239381,2449.6,2448.5,0.7823]
[1746980199126,0.98431681,2449.9,2448.5,0.7823]
[1746980199314,5.06616136,2449.9,2448.5,0.7823]
[1746980199613,4.08207264,2449.8,2448.5,0.7823]
[1746980199808,5.76167839,2449.6,2448.5,0.7823]
[1746980200221,0.43780488,2449.8,2448.5,0.7823]
[1746980200421,4.0819176,2449.9,2448.5,0.7823]
[1746980200630,5.76167839,2450.0,2448.6,0.04082576]
[1746980200810,5.76167839,2450.5,2448.8,0.7823]
[1746980201007,5.76167839,2450.5,2447.9,14.709]
[1746980201008,0.7912,2450.8,2449.0,9.3323]
[1746980201209,5.76167839,2450.5,2449.3,0.7823]
[1746980201435,5.76167839,2450.1,2449.4,18.402]
[1746980201635,8.0,2450.4,2449.4,18.402]
[1746980201930,5.76167839,2450.5,2449.5,8.0]
[1746980202143,5.76167839,2450.1,2449.4,18.402]
[1746980202298,0.57616784,2450.0,2449.4,18.402]
[1746980202707,5.76167839,2449.7,2449.4,18.402]
[1746980202913,4.0823236,2449.6,2449.4,18.402]
[1746980203110,4.08295747,2449.3,2448.5,3.697]
[1746980203301,5.76167839,2449.1,2448.5,3.697]
[1746980204536,8.0,2449.0,2448.5,3.697]
[1746980205037,5.76167839,2449.4,2448.6,0.04083907]
[1746980205224,5.76167839,2450.0,2448.8,0.7882]
[1746980205427,4.08122452,2450.3,2448.9,7.86234463]
[1746980205740,9.8426605,2450.4,2448.9,7.86234463]
[1746980205960,3.676,2450.8,2449.3,0.55]
[1746980206154,3.676,2450.8,2449.4,14.698]
[1746980206440,5.76167839,2450.5,2449.4,14.698]
[1746980206643,5.76167839,2450.5,2449.5,1.4698]
[1746980206939,10.19,2450.8,2449.7,0.7882]
[1746980207237,12.08061777,2450.7,2449.7,0.7882]
[1746980207551,8.0,2450.7,2449.8,0.0408111]
[1746980207755,8.0,2450.7,2449.7,0.7882]
[1746980207910,3.675,2451.0,2449.8,0.85683106]
[1746980208107,10.19,2451.6,2450.1,0.55]
[1746980208426,5.76167839,2451.9,2450.5,0.55]
[1746980208623,5.76167839,2451.5,2450.6,3.696]
[1746980208838,5.76167839,2451.5,2450.6,18.391]
[1746980209142,5.76167839,2451.9,2450.7,2.2064]
[1746980209346,6.57397839,2452.7,2450.9,0.7882]
[1746980209501,5.76167839,2452.7,2451.0,0.59078234]
[1746980209706,4.07773292,2452.4,2451.3,0.7882]
[1746980210026,5.76167839,2452.7,2451.4,7.40877786]
[1746980210350,5.76167839,2453.1,2451.7,0.55]
[1746980210646,5.76167839,2453.1,2451.6,0.7882]
[1746980210828,4.07741651,2452.6,2451.6,0.7882]
[1746980211004,4.07680704,2452.9,2451.7,0.04077621]
[1746980211205,8.0,2452.6,2451.6,0.7882]
[1746980211412,4.077072,2452.8,2451.7,0.04078122]
[1746980211739,4.07761576,2452.5,2451.7,0.04078122]
[1746980212044,4.15526083,2452.4,2451.7,0.04078122]
[1746980212208,0.07758584,2452.4,2451.7,0.04078122]
[1746980212548,4.62780451,2452.3,2451.6,0.7882]
[1746980212843,4.07967278,2451.2,2450.9,3.694]
[1746980213004,5.76167839,2451.4,2450.3,0.7882]
[1746980213205,9.84164642,2451.0,2450.5,3.693]
[1746980213410,4.0804668,2450.7,2450.5,3.693]
[1746980213607,4.08063331,2450.6,2449.7,0.7882]
[1746980213843,4.08141496,2450.2,2449.8,3.667]
[1746980214047,5.83873593,2450.1,2449.8,3.667]
[1746980214231,5.83873593,2450.1,2449.7,0.7882]
[1746980214232,5.83873593,2450.1,2449.6,3.667]
[1746980214434,8.0,2450.0,2449.3,14.685]
[1746980214619,8.0,2449.6,2449.3,14.685]
[1746980214947,4.08263248,2449.4,2449.3,14.685]
[1746980215242,4.08296586,2449.2,2449.1,3.667]
[1746980215419,0.07705754,2449.2,2448.8,0.7882]
[1746980215624,12.08232797,2449.6,2448.9,0.04083042]
[1746980215820,4.15963235,2449.5,2448.9,0.04083042]
[1746980216347,0.07705754,2449.5,2448.8,1.23372]
[1746980216647,4.08284729,2449.3,2448.8,1.23372]
[1746980216850,8.0,2449.4,2448.8,0.7882]
[1746980217059,0.07705754,2449.3,2448.8,0.7882]
[1746980217223,12.08236227,2449.6,2448.9,0.04082942]
[1746980217426,0.07705754,2449.5,2448.9,0.04082942]
[1746980218053,0.07705754,2449.5,2448.8,0.7882]
[1746980218261,8.0,2449.6,2448.8,0.7882]
[1746980218461,8.0,2450.0,2448.9,3.704823]
[1746980218610,8.0,2450.0,2449.0,0.4493023]
[1746980218956,8.0,2450.0,2449.1,0.04082206]
[1746980219347,5.76167839,2450.5,2449.2,0.7695]
[1746980219553,9.84187638,2450.9,2449.4,0.7695]
[1746980219713,9.84187638,2450.9,2449.5,1.91643163]
[1746980219714,5.76167839,2450.9,2449.5,1.91643163]
[1746980219921,5.76167839,2451.3,2449.8,0.7695]
[1746980220248,5.76167839,2451.3,2449.9,0.04080329]
[1746980220443,8.0,2451.2,2450.0,4.4365]
[1746980220757,5.76167839,2450.9,2450.0,4.4365]
[1746980221060,5.76167839,2451.3,2450.0,4.4365]
[1746980221217,5.72684523,2452.6,2450.0,4.4365]
[1746980221218,5.76167839,2451.7,2450.3,0.55]
[1746980221537,5.76167839,2451.7,2450.2,0.7695]
[1746980221538,5.76167839,2452.1,2450.7,0.7695]
[1746980221745,4.07876966,2451.8,2450.8,18.354]
[1746980221912,10.41612953,2452.1,2450.9,0.04079283]
[1746980222116,6.33784623,2452.1,2450.9,0.04078783]
[1746980222350,6.33784623,2452.1,2450.9,0.0407895]
[1746980223060,6.33784623,2452.1,2451.0,3.66]
[1746980223269,5.76167839,2452.1,2451.2,0.7695]
[1746980223417,15.95167839,2452.5,2451.3,0.04078265]
[1746980223614,8.0,2452.4,2451.2,0.7695]
[1746980223859,4.07835314,2452.0,2451.2,0.7695]
[1746980224076,8.0,2452.0,2451.2,0.7695]
[1746980224574,12.07841051,2452.0,2451.2,0.7695]
[1746980224783,4.07858114,2451.9,2451.3,0.04079119]
[1746980224957,8.0,2452.0,2451.2,0.81029119]
[1746980225278,0.55,2452.5,2451.2,0.81029119]
[1746980225462,15.95167839,2452.9,2451.3,0.7882]
[1746980225659,15.95167839,2452.9,2451.1,6.59]
[1746980225660,9.83862282,2452.9,2451.6,1.3382]
[1746980225973,5.76167839,2452.5,2451.7,3.666]
[1746980226269,5.76167839,2452.5,2451.8,0.04077829]
[1746980226473,5.76167839,2452.9,2451.8,0.04077829]
[1746980226674,9.83852278,2452.9,2451.8,0.8561759]
[1746980226876,12.07832823,2452.0,2451.9,3.666]
[1746980227175,12.0786361,2451.8,2451.4,3.666]
[1746980227472,10.19,2452.4,2451.5,0.04079122]
[1746980227717,10.19,2452.4,2451.4,3.666]
[1746980227718,8.0,2452.4,2451.4,3.666]
[1746980228010,5.76167839,2452.1,2451.5,0.04078771]
[1746980228160,0.79,2452.9,2451.5,0.37067877]
[1746980228358,5.76167839,2452.5,2451.6,0.7882]
[1746980228558,4.07792489,2452.3,2451.6,0.7882]
[1746980228771,5.76167839,2452.5,2451.6,0.7882]
[1746980228997,5.76167839,2452.9,2451.8,0.7882]
[1746980229184,0.783,2453.5,2451.8,0.7882]
[1746980229185,5.76167839,2453.3,2451.9,0.48927082]
[1746980229388,9.83864064,2452.9,2452.0,0.04077245]
[1746980229597,5.76167839,2452.5,2452.0,3.666]
[1746980230571,5.76167839,2452.9,2452.1,0.04077479]
[1746980230769,9.83850281,2452.9,2452.1,0.04077479]
[1746980230989,4.07742022,2452.6,2452.0,3.666]
[1746980231185,5.76167839,2452.9,2452.0,3.666]
[1746980231803,5.76167839,2452.9,2452.1,3.70577501]
[1746980231964,5.76167839,2452.9,2452.2,0.3705775]
[1746980232166,10.19,2453.1,2452.4,0.7882]
[1746980232412,5.76167839,2452.9,2452.4,0.7882]
[1746980232581,5.76167839,2452.9,2452.4,3.665]
[1746980232772,4.07727701,2452.7,2452.4,3.665]
[1746980233110,0.07748979,2452.6,2452.5,0.7882]
[1746980233492,1.09066769,2453.9,2452.5,0.7882]
[1746980233493,9.83709341,2453.8,2452.5,8.7882]
[1746980233669,4.07564642,2453.6,2452.5,8.7882]
[1746980233871,4.07556351,2453.7,2452.5,8.7882]
[1746980234071,0.783,2453.9,2452.5,8.7882]
[1746980234072,5.76167839,2453.4,2452.5,8.7882]
[1746980234310,5.76167839,2453.4,2452.6,1.32273456]
[1746980234509,5.76167839,2453.0,2452.5,0.7882]
[1746980234716,4.07681673,2452.9,2452.5,0.7882]
[1746980234868,5.76167839,2453.0,2452.5,0.7882]
[1746980235063,4.07653525,2453.1,2452.4,3.665]
[1746980235064,5.76167839,2452.6,2452.4,3.665]
[1746980235291,5.76167839,2452.9,2452.5,0.7882]
[1746980235490,4.07730571,2452.6,2452.5,3.664]
[1746980235690,5.76167839,2453.3,2452.4,3.664]
[1746980236096,4.07636829,2453.2,2452.5,0.04076504]
[1746980236293,4.07636829,2453.2,2452.4,3.664]
[1746980236495,4.07668107,2453.0,2452.4,3.664]
[1746980236700,5.76167839,2452.9,2452.2,0.7882]
[1746980236881,9.83915795,2452.5,2452.3,3.664]
[1746980237095,4.07763823,2452.4,2452.3,3.664]
[1746980237413,4.07858579,2451.9,2451.6,3.664]
[1746980237614,5.76167839,2452.5,2451.7,3.70478587]
[1746980237770,5.76167839,2452.5,2451.7,3.664]
[1746980237970,5.76167839,2452.1,2451.7,3.664]
[1746980238233,9.83989574,2452.1,2451.7,3.664]
[1746980238387,4.07857355,2451.9,2451.7,3.664]
[1746980238585,4.07837128,2452.0,2451.7,3.664]
[1746980238803,4.0786204,2451.9,2451.7,3.664]
[1746980239002,5.76167839,2452.1,2451.7,3.664]
[1746980239314,9.83983474,2452.1,2451.7,3.664]
[1746980239516,5.76167839,2452.1,2451.7,3.664]
[1746980239719,8.0,2452.7,2451.8,0.04078328]
[1746980240037,8.0,2452.7,2451.9,0.7574]
[1746980240197,4.07757398,2452.5,2451.9,0.7574]
[1746980240408,8.0,2452.7,2452.0,0.04077954]
[1746980240688,4.07730571,2452.6,2452.0,0.04077954]
[1746980241284,4.07760524,2452.5,2451.9,0.7574]
[1746980241484,4.07753508,2452.5,2451.9,0.7574]
[1746980241684,8.0,2452.7,2451.9,0.7574]
[1746980242018,4.07780451,2452.3,2451.9,0.7574]
[1746980242420,5.76167839,2452.4,2451.9,0.7574]
[1746980242735,5.76167839,2452.8,2452.0,0.04077981]
[1746980243112,5.76167839,2452.8,2451.9,0.7574]
[1746980243113,4.07725352,2452.7,2451.9,0.7574]
[1746980243517,5.76167839,2452.8,2452.0,0.04077574]
[1746980243711,4.07759255,2452.5,2451.9,0.7574]
[1746980243928,9.83942245,2452.4,2451.9,0.7574]
[1746980244114,6.74562064,2452.4,2451.9,0.7574]
[1746980244335,5.76167839,2452.0,2451.5,4.4332]
[1746980244641,0.55,2451.4,2450.8,0.7882]
[1746980244849,8.0,2451.5,2450.0,14.674]
[1746980244850,5.76167839,2451.1,2450.4,0.7882]
[1746980245013,9.84235687,2450.6,2450.2,3.645]
[1746980245212,5.76167839,2450.6,2450.2,5.55572]
[1746980246246,5.76167839,2450.8,2450.2,5.55572]
[1746980246700,8.0,2451.2,2450.4,0.7882]
[1746980246701,5.76167839,2451.2,2450.4,0.7882]
[1746980247206,5.76167839,2451.2,2450.5,0.04080134]
[1746980247406,10.19,2451.5,2450.5,0.92370147]
[1746980247606,10.19,2451.5,2450.6,0.7882]
[1746980248120,10.19,2451.5,2450.7,3.646]
[1746980249913,5.76167839,2451.2,2450.7,3.646]
[1746980250314,4.07989452,2451.1,2450.7,3.646]
[1746980250503,5.76167839,2451.2,2450.7,3.646]
[1746980250704,5.76167839,2451.2,2450.7,4.13022328]
[1746980251249,5.76167839,2451.2,2450.7,4.08942]
[1746980251611,5.76167839,2451.2,2450.6,0.7882]
[1746980251955,5.76167839,2451.2,2450.8,3.646]
[1746980252107,5.76167839,2451.6,2450.9,0.04079983]
[1746980252444,5.76167839,2451.2,2450.8,3.646]
[1746980252818,4.08004724,2451.0,2450.8,3.646]
[1746980253044,5.76167839,2451.2,2450.8,3.646]
[1746980253342,4.08002734,2451.0,2450.8,3.646]
[1746980253741,4.08002792,2451.0,2450.8,3.646]
[1746980254328,5.76167839,2451.2,2450.8,3.646]
[1746980254537,5.76167839,2451.2,2450.8,4.08942]
[1746980254716,10.19,2451.9,2451.0,0.7882]
[1746980254919,5.76167839,2452.0,2451.1,0.04079514]
[1746980255139,5.76167839,2452.4,2451.2,0.7882]
[1746980255338,5.76167839,2452.4,2451.5,0.7882]
[1746980255542,5.76167839,2452.4,2451.7,8.0]
[1746980255727,5.76167839,2452.4,2451.8,0.04078034]
[1746980256552,5.76167839,2452.4,2451.9,0.7882]
[1746980256861,5.76167839,2452.8,2452.0,0.04077762]
[1746980257030,15.95167839,2453.3,2452.0,0.04077762]
[1746980257231,15.95167839,2453.3,2452.1,0.7882]